{"text_format":"3","workbook":"xlsx","n_sheets":2,"sheets":["RSVP Tracker","RSVP Summary"],"not_rendered":{"charts":2,"defined_names":22},"read":"whole","date_system":"1900"}

{"sheet":"RSVP Tracker","index":0,"n_rows":15,"n_cols":15,"rows_kept":15,"merged":[[0,3,0,4],[0,5,0,7],[1,3,1,14]]}
[{"$nulls":5},"РЕЗЮМЕ ЗА \"МОЛЯ, ОТОГОВОРЕТЕ\""]
[null,"ДАТА НА СВАТБАТА",null,"проследяване на покани за сватба"]
[null,{"$f":"TODAY()+283","v":"2018-12-01"},null,"Име на госта","ИЗПРАТЕНА?","Моля, отговорете","КОМПАНИЯ","ГОСТ","ВРЪЗКА","АДРЕС","ГРАД","ОБЛАСТ","Пощенски код","ТЕЛЕФОН","ИМЕЙЛ ЗА ВРЪЗКА"]
[null,"ОСТАВАЩИ ДНИ",null,"Име 1","Да","Да",1,"Булка","Брат","Адрес","Град","Област","Пощенски код","Телефон","ime@example.com"]
[null,{"$f":"DaysRemaining","v":283},null,"Име 2","Да","Не",3,"Булка","Приятел","Адрес","Град","Област","Пощенски код","Телефон","ime@example.com"]
[null,"ЩЕ ДОЙДАТ",null,"Име 3","Да","Да",1,"Друг","Приятел","Адрес","Град","Област","Пощенски код","Телефон","ime@example.com"]
[null,{"$f":"TotalAttending","v":12},null,"Име 4","Да","Не",2,"Младоженец","Приятел","Адрес","Град","Област","Пощенски код","Телефон","ime@example.com"]
[null,"НЯМА ДА ДОЙДАТ",null,"Име 5","Да","Да",2,"Младоженец","Приятел","Адрес","Град","Област","Пощенски код","Телефон","ime@example.com"]
[null,{"$f":"TotalNotAttending","v":6},null,"Име 6","Да","Под въпрос",null,"Друг","Приятел","Адрес","Град","Област","Пощенски код","Телефон","ime@example.com"]
[null,"НЕОТГОВОРИЛИ",null,"Име 7","Да","Да",2,"Младоженец","Приятел","Адрес","Град","Област","Пощенски код","Телефон","ime@example.com"]
[null,{"$f":"OutstandingRSVP","v":1},null,"Име 8","Да","Не",1,"Друг","Приятел","Адрес","Град","Област","Пощенски код","Телефон","ime@example.com"]
[{"$nulls":3},"Име 9","Да","Да",4,"Булка","Приятел","Адрес","Град","Област","Пощенски код","Телефон","ime@example.com"]
[{"$nulls":3},"Име 10","Да","Да",2,"Булка","Приятел","Адрес","Град","Област","Пощенски код","Телефон","ime@example.com"]
[{"$nulls":3},"Име 11","Да",null,null,"Младоженец","Брат","Адрес","Град","Област","Пощенски код","Телефон","ime@example.com"]
[{"$nulls":3},"ОБЩО:",{"$f":"COUNTIF('RSVP Tracker'!$E$4:$E$14,\"Yes\")","v":11},{"$f":"COUNTA('RSVP Tracker'!$F$4:$F$14)","v":10},{"$f":"SUBTOTAL(109,tblInvites[КОМПАНИЯ])","v":18}]

{"sheet":"RSVP Summary","index":1,"n_rows":11,"n_cols":15,"rows_kept":11,"merged":[[0,3,0,4],[0,5,0,8],[1,3,1,11],[2,3,6,3],[2,4,6,4],[7,3,11,3],[7,4,11,4]]}
[{"$nulls":3},"ПРОСЛЕДЯВАНЕ НА \"МОЛЯ, ОТГОВОРЕТЕ\""]
[null,"ДАТА НА СВАТБАТА",null,"резюме за \"моля, отговорете\"",{"$nulls":10},"бележки"]
[null,{"$f":"WeddingDate","v":"2018-12-01"},null,"ДА","В тази клетка се намира стълбовидна диаграма с клъстери, показваща типовете гости с положителен отговор на \"моля, отговорете\"."]
[null,"ОСТАВАЩИ ДНИ",{"$nulls":3},"ДРУГ",{"$f":"IFERROR(SUMIFS(tblInvites[КОМПАНИЯ],tblInvites[ГОСТ],\"=Other\",tblInvites[Моля, отговорете],\"Yes\"),0)","v":1},{"$f":"tblInvites[[#Totals],[SENT?]]","v":11}]
[null,{"$f":"DaysRemaining","v":283},{"$nulls":3},"МЛАДОЖЕНЕЦ",{"$f":"IFERROR(SUMIFS(tblInvites[КОМПАНИЯ],tblInvites[ГОСТ],\"=Spouse-to-be 2\",tblInvites[Моля, отговорете],\"Yes\"),0)","v":4},{"$f":"tblInvites[[#Totals],[SENT?]]","v":11}]
[null,"ЩЕ ДОЙДАТ",{"$nulls":3},"БУЛКА",{"$f":"IFERROR(SUMIFS(tblInvites[КОМПАНИЯ],tblInvites[ГОСТ],\"=Spouse-to-be 1\",tblInvites[Моля, отговорете],\"Yes\"),0)","v":7},{"$f":"tblInvites[[#Totals],[SENT?]]","v":11}]
[null,{"$f":"TotalAttending","v":12}]
[null,"НЯМА ДА ДОЙДАТ",null,"НЕ","В тази клетка се намира стълбовидна диаграма с клъстери, показваща типовете гости с отрицателен отговор на \"моля, отговорете\"."]
[null,{"$f":"TotalNotAttending","v":6},{"$nulls":3},"ДРУГ",{"$f":"IFERROR(SUMIFS(tblInvites[КОМПАНИЯ],tblInvites[ГОСТ],\"=Other\",tblInvites[Моля, отговорете],\"No\"),0)","v":1},{"$f":"tblInvites[[#Totals],[SENT?]]","v":11}]
[null,"НЕОТГОВОРИЛИ",{"$nulls":3},"МЛАДОЖЕНЕЦ",{"$f":"IFERROR(SUMIFS(tblInvites[КОМПАНИЯ],tblInvites[ГОСТ],\"=Spouse-to-be 2\",tblInvites[Моля, отговорете],\"No\"),0)","v":2},{"$f":"tblInvites[[#Totals],[SENT?]]","v":11}]
[null,{"$f":"OutstandingRSVP","v":1},{"$nulls":3},"БУЛКА",{"$f":"IFERROR(SUMIFS(tblInvites[КОМПАНИЯ],tblInvites[ГОСТ],\"=Spouse-to-be 1\",tblInvites[Моля, отговорете],\"No\"),0)","v":3},{"$f":"tblInvites[[#Totals],[SENT?]]","v":11}]